[Event "Tata Steel-A playoff 80th"]
[Site "Wijk aan Zee"]
[Date "2018.01.28"]
[Round "15"]
[White "Giri, Anish"]
[Black "Carlsen, Magnus"]
[Result "1/2-1/2"]
[ECO "C54"]
[WhiteElo "2752"]
[BlackElo "2834"]
[PlyCount "75"]
[EventDate "2018.01.29"]
[EventType "match (rapid)"]
[EventCountry "NED"]
[SourceTitle "CBM 183"]
[Source "ChessBase"]
[SourceDate "2018.03.14"]
[SourceVersion "1"]
[SourceVersionDate "2018.03.14"]
[SourceQuality "1"]
[TimeControl "300+3"]

1. e4 {[%emt 0:00:00]} e5 {[%emt 0:00:05] Carlsen had white in the first game,
and went for a quick queen trade. He maintained a tiny advantage until
liquidating into a winning bishop endgame. "A very clean technical win," noted
live commentator GM Eric Hansen. That meant that Giri was forced to strike
back in his white game} 2. Nf3 {[%emt 0:00:00]} Nc6 {[%emt 0:00:01]} 3. Bc4 {
[%emt 0:00:01]} Bc5 {[%emt 0:00:04]} 4. c3 {[%emt 0:00:01]} Nf6 {[%emt 0:00:02]
} 5. d3 {[%emt 0:00:01]} d6 {[%emt 0:00:03]} 6. O-O {[%emt 0:00:04]} a6 {
[%emt 0:00:02]} 7. Re1 {[%emt 0:00:14]} Ba7 {[%emt 0:00:05]} 8. Bb3 {[%emt 0:
00:04]} O-O {[%emt 0:00:05]} 9. h3 {[%emt 0:00:01]} h6 {[%emt 0:00:36]} 10.
Nbd2 {[%emt 0:00:03]} Re8 {[%emt 0:00:02]} 11. Nf1 {[%emt 0:00:02]} Be6 {
[%emt 0:00:01]} 12. Bc2 {[%emt 0:00:01]} d5 {[%emt 0:00:03]} 13. Qe2 {[%emt 0:
00:03]} dxe4 {[%emt 0:00:09]} 14. dxe4 {[%emt 0:00:02]} Qe7 {[%emt 0:00:05]}
15. Ng3 {[%emt 0:00:12]} Rad8 {[%emt 0:00:01]} 16. Nh4 {[%emt 0:00:20]} Qf8 {
[%emt 0:00:41]} 17. Nhf5 {[%emt 0:00:09]} Ne7 {[%emt 0:00:04]} 18. Ne3 {
[%emt 0:01:23]} Ng6 {[%emt 0:00:03]} 19. Ngf5 {[%emt 0:00:04]} Nf4 {[%emt 0:00:
35]} 20. Qf3 {[%emt 0:00:01]} c6 {[%emt 0:00:16]} 21. Ng4 {[%emt 0:00:12]} Nxg4
{[%emt 0:00:04]} 22. hxg4 {[%emt 0:00:07]} g6 {[%emt 0:00:23]} 23. Bxf4 {
[%emt 0:00:06]} exf4 {[%emt 0:00:02]} 24. Qxf4 {[%emt 0:00:01]} gxf5 {[%emt 0:
00:13]} 25. gxf5 {[%emt 0:00:02]} Qg7 {[%emt 0:00:39]} 26. fxe6 {[%emt 0:00:07]
} Rxe6 {[%emt 0:00:16]} 27. Rad1 {[%emt 0:00:33]} Rde8 {[%emt 0:00:23]} 28. Re2
{[%emt 0:01:20]} Qg5 {[%emt 0:00:10]} 29. Qf3 {[%emt 0:00:32]} Rf6 {[%emt 0:00:
02]} 30. Qh3 {[%emt 0:00:01]} Qf4 {[%emt 0:00:08]} 31. Rf1 {[%emt 0:00:06]} Re5
{[%emt 0:00:02]} 32. Qh2 {[%emt 0:00:18]} Qg5 {[%emt 0:00:29]} 33. g3 {[%emt 0:
00:11]} Qg4 {[%emt 0:00:08]} 34. Rd2 {[%emt 0:00:04]} Rg5 {[%emt 0:00:18]} 35.
e5 {[%emt 0:00:11]} Rxe5 {[%emt 0:00:08]} 36. Bd1 {[%emt 0:00:01]} Qg5 {
[%emt 0:00:03]} 37. Rd3 {[%emt 0:00:04]} Ref5 {[%emt 0:00:03]} 38. Qh4 {
[%emt 0:00:04]} 1/2-1/2